bitfinex/quotes_BTCUSD_20230117
["timestamp","ask_amount","ask_price","bid_price","bid_amount"]
[1673948651606,0.00566418,21165.0,21164.0,2.44402541]
[1673948651858,0.00566418,21165.0,21164.0,2.33542743]
[1673948652099,0.00566418,21165.0,21164.0,2.44402042]
[1673948652397,0.00566418,21165.0,21164.0,2.37321615]
[1673948652596,0.00566418,21165.0,21164.0,2.44408213]
[1673948654183,0.00566418,21165.0,21164.0,2.33548914]
[1673948654444,0.00566418,21165.0,21164.0,2.37356547]
[1673948654981,0.00566418,21165.0,21164.0,2.58587153]
[1673948657648,0.00566418,21165.0,21164.0,2.19127823]
[1673948657650,0.00566418,21165.0,21164.0,2.33280809]
[1673948657897,0.00602372,21165.0,21164.0,0.082]
[1673948658145,0.01416418,21165.0,21164.0,0.082]
[1673948658407,0.00566418,21165.0,21164.0,0.082]
[1673948658657,0.01416418,21165.0,21164.0,0.082]
[1673948658946,0.01452372,21165.0,21164.0,0.082]
[1673948659194,0.33632172,21165.0,21164.0,0.082]
[1673948659704,0.01452372,21165.0,21164.0,0.082]
[1673948659924,0.15548081,21165.0,21164.0,0.082]
[1673948660173,0.44792172,21165.0,21164.0,0.082]
[1673948663925,0.44792172,21165.0,21164.0,0.08213701]
[1673948663926,0.01416418,21165.0,21164.0,0.08213701]
[1673948664368,0.01416418,21165.0,21164.0,0.082]
[1673948665429,0.01416418,21165.0,21164.0,0.08213701]
[1673948669464,0.01416418,21165.0,21164.0,0.082]
[1673948672205,0.01452372,21165.0,21164.0,0.082]
[1673948672979,0.01416418,21165.0,21164.0,0.08213701]
[1673948673541,0.00566418,21165.0,21164.0,0.55463701]
[1673948673834,0.00566418,21165.0,21164.0,0.85463701]
[1673948674368,0.00566418,21165.0,21164.0,0.55463701]
[1673948674635,0.00566418,21165.0,21164.0,0.5545]
[1673948675419,0.66041702,21167.0,21164.0,0.85463701]
[1673948675688,0.0085,21166.0,21164.0,0.55463701]
[1673948675944,0.11955954,21166.0,21164.0,0.082]
[1673948676201,0.46279439,21165.0,21164.0,0.082]
[1673948676680,0.47129439,21165.0,21164.0,0.082]
[1673948676724,0.14949639,21165.0,21162.0,0.83622133]
[1673948676982,0.14949639,21165.0,21164.0,0.003]
[1673948677248,0.0085,21165.0,21162.0,0.83622133]
[1673948677521,0.0085,21165.0,21164.0,0.077]
[1673948677522,0.0095,21165.0,21164.0,0.077]
[1673948677788,0.0095,21165.0,21162.0,0.83622133]
[1673948678313,0.0095,21165.0,21163.0,0.00013702]
[1673948678762,0.0105,21165.0,21162.0,0.548524]
[1673948679252,0.0085,21165.0,21162.0,0.472524]
[1673948679500,0.1201,21165.0,21162.0,0.472524]
[1673948679764,0.1211,21165.0,21163.0,0.076]
[1673948680016,0.1201,21165.0,21162.0,0.472524]
[1673948680263,0.1211,21165.0,21162.0,0.548524]
[1673948683722,0.0085,21164.0,21162.0,0.076]
[1673948683982,0.1106,21163.0,21162.0,0.076]
[1673948684312,0.1191,21163.0,21162.0,0.076]
[1673948685019,0.1191,21163.0,21160.0,0.86518308]
[1673948685268,0.1191,21163.0,21162.0,0.076]
[1673948685269,0.1201,21163.0,21162.0,0.076]
[1673948686313,0.1191,21163.0,21160.0,0.86518308]
[1673948686565,0.1201,21163.0,21160.0,0.94118308]
[1673948686826,0.1191,21163.0,21160.0,0.86518308]
[1673948687088,0.1201,21163.0,21162.0,0.076]
[1673948687605,0.12045954,21163.0,21162.0,0.076]
[1673948688161,0.11945954,21163.0,21160.0,0.86518308]
[1673948688401,0.12045954,21163.0,21160.0,0.94118308]
[1673948688653,0.11945954,21163.0,21160.0,0.86518308]
[1673948688909,0.12045954,21163.0,21162.0,0.076]
[1673948689229,0.11945954,21163.0,21160.0,0.86518308]
[1673948689428,0.12045954,21163.0,21160.0,0.46860708]
[1673948691014,0.1201,21163.0,21161.0,0.00013703]
[1673948691512,0.1201,21163.0,21160.0,0.94119108]
[1673948692041,0.1191,21163.0,21160.0,0.86519108]
[1673948692241,0.1201,21163.0,21161.0,0.076]
[1673948692459,0.1191,21163.0,21160.0,0.86519108]
[1673948692899,0.1201,21163.0,21160.0,0.94119108]
[1673948693154,0.1191,21163.0,21160.0,0.86519108]
[1673948693427,0.1201,21163.0,21161.0,0.076]
[1673948693968,0.1201,21163.0,21161.0,0.54870203]
[1673948694509,0.1201,21163.0,21161.0,0.472565]
[1673948694784,0.11945954,21163.0,21161.0,0.472565]
[1673948695032,0.12045954,21163.0,21161.0,0.548565]
[1673948695289,0.12045954,21163.0,21162.0,0.3]
[1673948695553,0.1201,21163.0,21161.0,0.54870203]
[1673948695873,0.12045954,21163.0,21161.0,0.548565]
[1673948696207,0.11945954,21163.0,21161.0,0.472565]
[1673948696427,0.11945954,21163.0,21161.0,0.417565]
[1673948696912,0.11945954,21163.0,21160.0,0.86519108]
[1673948697185,0.1111,21161.0,21158.0,0.472623]
[1673948697447,0.321798,21160.0,21158.0,0.472623]
[1673948697710,0.11195954,21160.0,21157.0,0.472636]
[1673948698248,0.11195954,21160.0,21158.0,0.07]
[1673948698733,0.0085,21159.0,21156.0,0.9540269]
[1673948698993,0.0085,21159.0,21157.0,0.07]
[1673948699495,0.1191,21159.0,21157.0,0.07]
[1673948700032,0.1191,21159.0,21156.0,1.4267039]
[1673948700287,0.1211,21159.0,21156.0,1.4967039]
[1673948700554,0.1191,21159.0,21156.0,1.4267039]
[1673948701278,0.1211,21159.0,21157.0,0.37]
[1673948701500,0.1191,21159.0,21157.0,0.30013705]
[1673948701753,0.1211,21159.0,21156.0,1.0317644]
[1673948702020,0.2232,21157.0,21156.0,0.0864314]
[1673948702284,0.553498,21157.0,21156.0,0.0864314]
[1673948702552,0.441898,21157.0,21156.0,0.0864314]
[1673948702816,0.1201,21157.0,21156.0,0.0864314]
[1673948703082,0.441898,21157.0,21156.0,0.0864314]
[1673948703348,0.12045954,21157.0,21156.0,0.0864314]
[1673948703608,0.1201,21157.0,21156.0,0.0164314]
[1673948704128,0.1221,21157.0,21156.0,0.0804314]
[1673948704380,0.12245954,21157.0,21156.0,0.0804314]
[1673948704648,0.44425754,21157.0,21156.0,0.0804314]
[1673948705198,0.12245954,21157.0,21156.0,0.0804314]
[1673948706741,0.44425754,21157.0,21156.0,0.0804314]
[1673948707249,0.12245954,21157.0,21156.0,0.0804314]
[1673948707777,1.61694545,21157.0,21156.0,0.0804314]
[1673948709183,1.06756268,21157.0,21156.0,0.0804314]
[1673948709423,0.95596268,21157.0,21156.0,0.0804314]
[1673948709669,0.95560314,21157.0,21156.0,0.0804314]
[1673948709912,0.63380514,21157.0,21156.0,0.0804314]
[1673948712358,0.95560314,21157.0,21156.0,0.0804314]
[1673948712570,0.63380514,21157.0,21156.0,0.0804314]
[1673948713282,0.63416468,21157.0,21156.0,0.0804314]
[1673948714153,0.95596268,21157.0,21156.0,0.0804314]
[1673948715168,0.63416468,21157.0,21156.0,0.0804314]
[1673948716695,0.52220514,21157.0,21156.0,0.0804314]
[1673948717479,0.52256468,21157.0,21156.0,0.0804314]
[1673948717755,0.52220514,21157.0,21156.0,0.0804314]
[1673948719628,0.52256468,21157.0,21156.0,0.0804314]
[1673948719867,0.52220514,21157.0,21156.0,0.0804314]
[1673948721732,0.52220514,21157.0,21156.0,0.3804314]
[1673948721985,0.52220514,21157.0,21156.0,0.0804314]
[1673948722447,0.52220514,21157.0,21156.0,0.3804314]
[1673948723199,0.002,21157.0,21156.0,0.3804314]
[1673948723423,0.002,21157.0,21156.0,0.8531104]
[1673948726373,0.002,21157.0,21156.0,1.60315387]
[1673948726645,0.002,21157.0,21156.0,2.19182792]
[1673948727130,0.002,21157.0,21156.0,1.1870104]
[1673948728941,0.002,21157.0,21156.0,1.0756104]
[1673948732529,0.02558762,21158.0,21156.0,1.0116104]
[1673948732822,0.003,21157.0,21156.0,0.5491104]
[1673948733352,0.003,21157.0,21156.0,0.8491104]
[1673948734098,0.02558762,21158.0,21156.0,0.7891104]
[1673948734543,0.02758762,21158.0,21156.0,0.8181104]
[1673948734761,0.02758762,21158.0,21156.0,0.7891104]
[1673948735022,0.003,21157.0,21156.0,0.8491104]
[1673948735268,0.02558762,21158.0,21156.0,0.7891104]
[1673948735530,0.02758762,21158.0,21157.0,0.4116]
[1673948735778,0.02758762,21158.0,21157.0,0.884256]
[1673948736564,0.02758762,21158.0,21157.0,1.02570251]
[1673948737070,0.02558762,21158.0,21157.0,1.13650251]
[1673948737320,0.02558762,21158.0,21157.0,1.13950251]
[1673948737321,0.05758762,21158.0,21157.0,1.13950251]
[1673948739669,0.05758762,21158.0,21157.0,0.886456]
[1673948741423,0.05758762,21158.0,21157.0,1.02790251]
[1673948743223,0.05758762,21158.0,21157.0,1.35057227]
[1673948743492,0.05758762,21158.0,21157.0,1.48549383]
[1673948743750,0.05758762,21158.0,21157.0,2.5109101]
[1673948744015,0.05182886,21158.0,21157.0,3.0400636]
[1673948744860,0.01982886,21158.0,21157.0,3.03694009]
[1673948745034,0.02282886,21158.0,21157.0,3.09894009]
[1673948745276,0.01982886,21158.0,21157.0,3.03694009]
[1673948745524,0.02282886,21158.0,21157.0,2.74544733]
[1673948745789,0.01982886,21158.0,21157.0,3.03693967]
[1673948746071,0.02282886,21158.0,21157.0,2.74544733]
[1673948747023,0.01982886,21158.0,21157.0,3.03683304]
[1673948747274,0.02282886,21158.0,21157.0,3.38154169]
[1673948747520,0.01982886,21158.0,21157.0,3.08618115]
[1673948747763,0.02282886,21158.0,21157.0,3.14818115]
[1673948748019,0.01982886,21158.0,21157.0,2.73279544]
[1673948748274,0.01322513,21158.0,21157.0,3.73975885]
[1673948749052,0.01322513,21158.0,21157.0,4.10175061]
[1673948749053,0.01022513,21158.0,21157.0,4.10175061]
[1673948749609,0.51320002,21166.0,21158.0,0.1]
[1673948749890,0.51320002,21166.0,21165.0,0.2232]
[1673948750139,0.52170002,21166.0,21165.0,0.41392595]
[1673948750650,0.52170002,21166.0,21165.0,0.2232]
[1673948751191,0.52170002,21166.0,21165.0,0.2282]
[1673948751192,0.55170002,21166.0,21165.0,0.2282]
[1673948753193,0.0455256,21166.0,21165.0,0.1166]
[1673948755454,0.0370256,21166.0,21165.0,1.100678]
[1673948756743,0.0370256,21166.0,21165.0,1.000678]
[1673948758860,0.0370256,21166.0,21165.0,1.75418664]
[1673948759625,0.0370256,21166.0,21165.0,1.53810981]
[1673948760102,0.0370256,21166.0,21165.0,1.64970981]
[1673948760148,0.0070256,21166.0,21165.0,1.64970981]
[1673948760486,0.0070256,21166.0,21165.0,1.71370981]
[1673948760487,0.0090256,21166.0,21165.0,1.71370981]
[1673948760745,0.0090256,21166.0,21165.0,1.85499911]
[1673948761006,0.0090256,21166.0,21165.0,1.37759229]
[1673948761836,0.0090256,21166.0,21165.0,1.71246533]
[1673948762098,0.0090256,21166.0,21165.0,2.15588058]
[1673948762374,0.0070256,21167.0,21166.0,0.05967853]
[1673948762639,0.0070256,21167.0,21166.0,1.68102063]
[1673948762903,0.0070256,21167.0,21166.0,3.42046029]
[1673948763684,0.0059028,21169.0,21166.0,3.13839123]
[1673948763945,0.00236854,21167.0,21166.0,2.38517485]
[1673948764236,0.0059028,21169.0,21166.0,3.33509576]
[1673948764493,0.0059028,21169.0,21168.0,0.3337]
[1673948764747,0.0059028,21169.0,21168.0,2.48580604]
[1673948764974,0.0089028,21169.0,21168.0,2.48580604]
[1673948766264,0.0089028,21169.0,21168.0,2.67653199]
[1673948766517,0.0089028,21169.0,21168.0,3.39000604]
[1673948766518,0.0059028,21169.0,21168.0,3.39000604]
[1673948766785,0.0089028,21169.0,21168.0,3.45100604]
[1673948767009,0.0059028,21169.0,21168.0,3.5309102]
[1673948767294,0.0089028,21169.0,21168.0,3.21480604]
[1673948768596,0.00625675,21170.0,21169.0,0.37472154]
[1673948768858,0.00625675,21170.0,21169.0,1.91578258]
[1673948769645,0.00625675,21170.0,21169.0,2.58508258]
[1673948769906,0.00825675,21170.0,21169.0,2.65208258]
[1673948770437,0.00825675,21170.0,21169.0,1.98298258]
[1673948771458,0.00825675,21170.0,21169.0,2.65248258]
[1673948777656,0.00572482,21171.0,21169.0,2.65248258]
[1673948777920,0.00572482,21171.0,21170.0,1.74156042]
[1673948778219,0.00572482,21171.0,21170.0,2.68599242]
[1673948778999,0.00772482,21171.0,21170.0,2.68599242]
[1673948779255,0.00572482,21171.0,21170.0,2.39254401]
[1673948779564,0.00772482,21171.0,21170.0,2.46154401]
[1673948783603,0.00772482,21171.0,21170.0,1.79164401]
[1673948784132,0.0068348,21171.0,21170.0,1.79164401]
[1673948787719,0.00705269,21174.0,21171.0,0.47001981]
[1673948787970,0.00705269,21174.0,21171.0,2.15356136]
[1673948788224,0.00705269,21174.0,21171.0,2.36511719]
[1673948788506,0.00705269,21174.0,21171.0,2.91823984]
[1673948788749,8e-07,21173.0,21172.0,1.6386249]
[1673948788997,0.00705269,21174.0,21173.0,0.1]
[1673948789254,0.00705269,21174.0,21173.0,1.2405239]
[1673948789517,0.00879395,21176.0,21174.0,0.1]
[1673948789778,0.00879395,21176.0,21175.0,2.0858899]
[1673948789779,0.008372,21176.0,21175.0,2.0858899]
[1673948790034,0.008372,21176.0,21175.0,2.3858899]
[1673948790278,0.008372,21176.0,21175.0,2.65416305]
[1673948791103,0.008372,21176.0,21175.0,2.54256305]
[1673948792065,0.008372,21176.0,21175.0,2.63456305]
[1673948792607,0.008372,21176.0,21175.0,2.54256305]
[1673948792859,0.008372,21176.0,21175.0,2.63456305]
[1673948793156,0.00795005,21176.0,21175.0,2.63456305]
[1673948793946,0.00795005,21176.0,21175.0,2.74616305]
[1673948794203,0.00795005,21176.0,21175.0,3.12296457]
[1673948795009,0.00795005,21176.0,21175.0,2.22306305]
[1673948795281,0.00795005,21176.0,21175.0,1.88863815]
[1673948797211,0.00795005,21176.0,21175.0,2.47533457]
[1673948797467,0.00795005,21176.0,21175.0,2.63466305]
[1673948798254,0.00795005,21176.0,21175.0,2.77533457]
[1673948798753,0.00795005,21176.0,21175.0,2.63466305]
[1673948799263,0.00544814,21177.0,21176.0,0.1]
[1673948799533,0.00544814,21177.0,21176.0,1.92245121]
[1673948799803,0.00544814,21177.0,21176.0,2.06369202]
[1673948800066,0.00544814,21177.0,21176.0,1.12480329]
[1673948800827,0.00544814,21177.0,21176.0,0.883732]
[1673948801075,0.00544814,21177.0,21176.0,0.975732]
[1673948801328,0.00544814,21177.0,21176.0,1.075732]
[1673948801584,0.00544814,21177.0,21176.0,0.975732]
[1673948801854,0.00497814,21177.0,21176.0,1.21680329]
[1673948802139,0.00497814,21177.0,21176.0,1.55122819]
[1673948802391,0.00497814,21177.0,21176.0,1.21680329]
[1673948802691,0.00497814,21177.0,21176.0,1.075732]
[1673948802931,0.00497814,21177.0,21176.0,1.70965911]
[1673948803188,0.00497814,21177.0,21176.0,2.04408401]
[1673948803441,0.00497814,21177.0,21176.0,2.04421437]
[1673948803988,0.00443555,21177.0,21176.0,2.15571437]
[1673948804230,0.00443555,21177.0,21176.0,2.1557145]
[1673948804490,0.00443555,21177.0,21176.0,1.87426817]
[1673948804753,0.00443555,21177.0,21176.0,1.66270429]
[1673948806307,0.00443555,21177.0,21176.0,1.32827939]
[1673948806812,0.00443555,21177.0,21176.0,1.87426817]
[1673948807049,0.00443555,21177.0,21176.0,1.66270429]
[1673948807561,0.00443555,21177.0,21176.0,1.87426817]
[1673948808069,0.00443555,21177.0,21176.0,1.53984327]
[1673948808306,0.00443555,21177.0,21176.0,2.01520314]
[1673948809591,0.00443555,21177.0,21176.0,1.53984327]
[1673948809849,0.00443555,21177.0,21176.0,1.68042237]
[1673948810097,0.00443555,21177.0,21176.0,1.53989381]
[1673948810368,0.00443555,21177.0,21176.0,1.82138981]
[1673948810616,0.00443555,21177.0,21176.0,1.53989369]
[1673948810870,0.00443555,21177.0,21176.0,1.32832981]
[1673948811982,0.00443555,21177.0,21176.0,1.11682981]
[1673948812245,0.00443555,21177.0,21176.0,0.975732]
[1673948812507,0.00443555,21177.0,21176.0,1.32839369]
[1673948813475,0.00443555,21177.0,21176.0,1.32785651]
[1673948813731,0.00443555,21177.0,21176.0,1.11686324]
[1673948815017,0.00443555,21177.0,21176.0,1.6098523]
[1673948815496,0.00443555,21177.0,21176.0,1.32863119]
[1673948815749,0.00443555,21177.0,21176.0,1.11689168]
[1673948816523,0.00443555,21177.0,21176.0,1.46912009]
[1673948816782,0.00443555,21177.0,21176.0,1.32795324]
[1673948818154,0.00443555,21177.0,21176.0,1.61002765]
[1673948819102,0.00443555,21177.0,21176.0,1.46880005]
[1673948819565,0.00443555,21177.0,21176.0,1.75126064]
[1673948820552,0.00443555,21177.0,21176.0,1.61059975]
[1673948821774,0.00443555,21177.0,21176.0,1.75126064]
[1673948822072,0.00443555,21177.0,21176.0,1.46880005]
[1673948822815,0.00443555,21177.0,21176.0,1.11621373]
[1673948823078,0.00443555,21177.0,21176.0,1.75217638]
[1673948823602,0.00443555,21177.0,21176.0,1.11621373]
[1673948823851,0.00443555,21177.0,21176.0,1.46953548]
[1673948824107,0.00396258,21177.0,21176.0,1.46953548]
[1673948824620,0.00614979,21180.0,21176.0,1.54020549]
[1673948824872,0.00667541,21178.0,21177.0,0.6527741]
[1673948825087,0.00667541,21178.0,21177.0,2.23353986]
[1673948825313,0.00667541,21178.0,21177.0,2.53353986]
[1673948825789,0.00667541,21178.0,21177.0,2.25071952]
[1673948826320,0.00667541,21178.0,21177.0,2.34271952]
[1673948827086,0.00667541,21178.0,21177.0,1.9891941]
[1673948827597,0.00667541,21178.0,21177.0,2.34289604]
[1673948828356,0.00667541,21178.0,21177.0,1.9891941]
[1673948828611,0.00667541,21178.0,21177.0,2.41318586]
[1673948829609,0.00667541,21178.0,21177.0,2.52478586]
[1673948829868,0.00625346,21178.0,21177.0,2.1007941]
[1673948830373,0.00625346,21178.0,21177.0,2.52478586]
[1673948830908,0.00625346,21178.0,21177.0,2.31318586]
[1673948831157,0.00625346,21178.0,21177.0,1.8891941]
[1673948831677,0.00625346,21178.0,21177.0,2.24310934]
[1673948832727,0.00625346,21178.0,21177.0,1.8891941]
[1673948832984,0.00625346,21178.0,21177.0,2.24311258]
[1673948833620,0.00625346,21178.0,21177.0,2.52624509]
[1673948834389,0.00625346,21178.0,21177.0,2.17232661]
[1673948834637,0.00625346,21178.0,21177.0,1.8891941]
[1673948837859,0.00625346,21178.0,21177.0,2.52629085]
[1673948840561,0.00625346,21178.0,21177.0,1.8891941]
[1673948842747,0.006613,21178.0,21177.0,2.24309479]
[1673948842986,0.00625346,21178.0,21177.0,2.24309479]
[1673948843263,0.00625346,21178.0,21177.0,1.8891941]
[1673948843467,0.00625346,21178.0,21177.0,2.24310212]
[1673948844148,0.00625346,21178.0,21177.0,2.52623048]
[1673948845100,0.00625346,21178.0,21177.0,2.24310212]
[1673948845432,0.00625346,21178.0,21177.0,2.52623184]
[1673948845653,0.00625346,21178.0,21177.0,1.8891941]
[1673948845911,0.006613,21178.0,21177.0,1.47690173]
[1673948846176,0.32805146,21178.0,21177.0,1.81393552]
[1673948846400,0.32805146,21178.0,21177.0,1.53080651]
[1673948846650,0.32805146,21178.0,21177.0,1.8139319]
[1673948846899,0.328411,21178.0,21177.0,1.46002712]
[1673948847156,0.32805146,21178.0,21177.0,1.67237644]
[1673948847375,0.32805146,21178.0,21177.0,1.46002712]
[1673948847597,0.32805146,21178.0,21177.0,1.67236302]
[1673948847849,0.328411,21178.0,21177.0,1.53079831]
[1673948848104,0.32805146,21178.0,21177.0,1.53079831]
[1673948848359,0.32805146,21178.0,21177.0,1.68923763]
[1673948848607,0.32805146,21178.0,21177.0,1.83079811]
[1673948848875,0.006613,21178.0,21177.0,1.39031638]
[1673948849121,0.006613,21178.0,21177.0,1.17798048]
[1673948849122,0.440011,21178.0,21177.0,1.17798048]
[1673948849626,0.440011,21178.0,21177.0,1.39031638]
[1673948849627,0.31390674,21178.0,21177.0,1.39031638]
[1673948849876,0.42530674,21178.0,21177.0,1.17798048]
[1673948850129,0.42566628,21178.0,21177.0,1.17798048]
[1673948850401,0.42530674,21178.0,21177.0,1.17798048]
[1673948850648,0.42530674,21178.0,21177.0,1.47798048]
[1673948850904,0.42530674,21178.0,21177.0,1.81771038]
[1673948851155,0.42566628,21178.0,21177.0,1.51771038]
[1673948851418,0.42566628,21178.0,21177.0,1.17798048]
[1673948851672,0.42566628,21178.0,21177.0,1.03642]
[1673948851924,0.42566628,21178.0,21177.0,1.33642]
[1673948852194,0.42566628,21178.0,21177.0,1.03642]
[1673948853458,0.42566628,21178.0,21177.0,1.33642]
[1673948854005,0.42566628,21178.0,21177.0,1.17798048]
[1673948854248,0.42566628,21178.0,21177.0,1.03642]
[1673948855511,0.42566628,21178.0,21177.0,0.56421]
[1673948855825,0.42566628,21178.0,21177.0,0.092]
[1673948856917,0.47171679,21178.0,21177.0,0.092]
[1673948859523,0.58331679,21178.0,21177.0,0.092]
[1673948864641,0.36031679,21178.0,21177.0,0.092]
[1673948867664,0.36031679,21178.0,21177.0,0.392]
[1673948867920,0.04605051,21178.0,21177.0,1.44648699]
[1673948868190,0.04605051,21178.0,21177.0,1.70763413]
[1673948868443,0.04144546,21178.0,21177.0,1.70764253]
[1673948869732,0.04144546,21178.0,21177.0,1.81924253]
[1673948870739,0.04144546,21178.0,21177.0,2.10191489]
[1673948872003,0.04144546,21178.0,21177.0,1.9600091]
[1673948872556,0.041805,21178.0,21177.0,1.56573674]
[1673948872821,0.041805,21178.0,21177.0,1.70630535]
[1673948873067,0.04144546,21178.0,21177.0,1.36713646]
[1673948874628,0.04144546,21178.0,21177.0,1.70677394]
[1673948874892,0.041805,21178.0,21177.0,0.56421]
[1673948875146,0.153405,21178.0,21177.0,0.092]
[1673948875397,0.475193,21178.0,21177.0,0.092]
[1673948879634,0.363593,21178.0,21177.0,0.092]
[1673948883336,0.36323346,21178.0,21177.0,0.092]
[1673948884881,0.36323346,21178.0,21177.0,0.392]
[1673948885391,0.36323346,21178.0,21177.0,0.092]
[1673948886438,0.36323346,21178.0,21177.0,0.392]
[1673948886707,0.36323346,21178.0,21177.0,0.86421]
[1673948886966,0.36323346,21178.0,21177.0,1.0055459]
[1673948887239,0.04144546,21178.0,21177.0,1.48679125]
[1673948888259,0.04144546,21178.0,21177.0,1.34550254]
[1673948888564,0.04144546,21178.0,21177.0,1.59839125]
[1673948888782,0.04144546,21178.0,21177.0,1.45752935]
[1673948889048,0.03730092,21178.0,21177.0,1.79139953]
[1673948890123,0.03730092,21178.0,21177.0,1.45752935]
[1673948890383,0.03730092,21178.0,21177.0,1.74020256]
[1673948891243,0.03730092,21178.0,21177.0,1.45752935]
[1673948892024,0.03730092,21178.0,21177.0,1.74015104]
[1673948893342,0.03730092,21178.0,21177.0,1.38624626]
[1673948893598,0.03730092,21178.0,21177.0,1.20398766]
[1673948893850,0.03730092,21178.0,21177.0,1.34529805]
[1673948894105,0.35908892,21178.0,21177.0,1.34529805]
[1673948894367,0.03730092,21178.0,21177.0,0.56421]
[1673948894634,0.35944846,21178.0,21177.0,0.56421]
[1673948897895,0.35944846,21178.0,21177.0,0.092]
[1673948899694,0.46994846,21178.0,21177.0,0.092]
[1673948900456,0.35944846,21178.0,21177.0,0.092]
[1673948900717,0.35908892,21178.0,21177.0,0.092]
[1673948903482,0.35944846,21178.0,21177.0,0.092]
[1673948904225,0.35908892,21178.0,21177.0,0.092]
[1673948905253,0.35908892,21178.0,21177.0,1.2766303]
[1673948905254,0.03730092,21178.0,21177.0,1.2766303]
[1673948905528,0.03730092,21178.0,21177.0,0.99400861]
[1673948905791,0.03730092,21178.0,21177.0,1.58863122]
[1673948906866,0.03730092,21178.0,21177.0,1.3766303]
[1673948907677,0.03730092,21178.0,21177.0,1.73059413]
[1673948908985,0.03730092,21178.0,21177.0,1.58869547]
[1673948909736,0.03730092,21178.0,21177.0,1.80629902]
[1673948909951,0.03730092,21178.0,21177.0,1.80629894]
[1673948910208,0.03730092,21178.0,21177.0,1.66440357]
[1673948911472,0.03730092,21178.0,21177.0,1.80628593]
[1673948912195,0.03730092,21178.0,21177.0,1.45238115]
[1673948912421,0.03730092,21178.0,21177.0,1.80628593]
[1673948912964,0.03730092,21178.0,21177.0,1.6643883]
[1673948913224,0.03719631,21178.0,21177.0,1.35238115]
[1673948915031,0.05164642,21178.0,21177.0,1.35238115]
[1673948915505,0.05164642,21178.0,21177.0,1.70628593]
[1673948917207,0.05164642,21178.0,21177.0,1.56438104]
[1673948918219,0.05164642,21178.0,21177.0,1.70628593]
[1673948919489,0.05164642,21178.0,21177.0,1.56439988]
[1673948919997,0.05164642,21178.0,21177.0,1.70628593]
[1673948920260,0.05164642,21178.0,21177.0,1.42361339]
[1673948920764,0.05164642,21178.0,21177.0,1.70630622]
[1673948920990,0.05164642,21178.0,21177.0,1.63060622]
[1673948921220,0.05164642,21178.0,21177.0,1.74210622]
[1673948922725,0.05164642,21178.0,21177.0,1.38820144]
[1673948923500,0.05164642,21178.0,21177.0,1.04750933]
[1673948923758,0.05164642,21178.0,21177.0,1.11872128]
[1673948924022,0.04648178,21178.0,21177.0,1.11872128]
[1673948925589,0.04648178,21178.0,21177.0,1.11818542]
[1673948926327,0.04648178,21178.0,21177.0,0.8648165]
[1673948928362,0.04648178,21178.0,21177.0,0.9763165]
[1673948932518,0.04648178,21178.0,21177.0,0.97638262]
[1673948935363,0.04648178,21178.0,21177.0,0.66200247]
[1673948936384,0.04648178,21178.0,21177.0,1.38599423]
[1673948940010,0.04648178,21178.0,21177.0,1.71972855]
[1673948940533,0.04648178,21178.0,21177.0,1.38599423]
[1673948942308,0.04648178,21178.0,21177.0,0.96200247]
[1673948942553,0.04648178,21178.0,21177.0,1.38626307]
[1673948943048,0.04648178,21178.0,21177.0,0.96200247]
[1673948943575,0.04648178,21178.0,21177.0,1.38622591]
[1673948944096,0.04122863,21178.0,21177.0,1.38622591]
[1673948944355,0.04122863,21178.0,21177.0,0.96200247]
[1673948947686,0.00604979,21179.0,21178.0,0.50031696]
[1673948947959,0.00604979,21179.0,21178.0,2.9639905]
[1673948948218,0.00604979,21179.0,21178.0,2.53962849]
[1673948948771,0.00614979,21180.0,21178.0,3.83699232]
[1673948949025,0.00614979,21180.0,21179.0,2.03481976]
[1673948949300,0.00614979,21180.0,21179.0,2.36044662]
[1673948949567,0.00896874,21181.0,21179.0,3.28768476]
[1673948949820,0.00896874,21181.0,21180.0,2.13207191]
[1673948950088,0.00896874,21181.0,21180.0,3.37744977]
[1673948950343,0.00896874,21181.0,21180.0,3.63548791]
[1673948950616,0.00896874,21181.0,21180.0,3.37744977]
[1673948951140,0.01796874,21181.0,21180.0,3.37744977]
[1673948951427,0.0078591,21184.0,21181.0,0.1]
[1673948951685,0.0078591,21184.0,21183.0,0.63592886]
[1673948951945,0.0078591,21184.0,21183.0,1.47816842]
[1673948952218,0.0078591,21184.0,21183.0,1.76079693]
[1673948952473,0.0078591,21184.0,21183.0,1.47816842]
[1673948952972,0.0158591,21184.0,21183.0,1.76197307]
[1673948952974,0.0078591,21184.0,21183.0,1.76197307]
[1673948953246,0.0001411,21184.0,21183.0,1.78149396]
[1673948953493,0.01132632,21186.0,21183.0,1.78149396]
[1673948953494,0.01132632,21186.0,21185.0,0.1]
[1673948953744,0.01132632,21186.0,21185.0,0.89436829]
[1673948954020,0.01132632,21186.0,21185.0,2.59292447]
[1673948954818,0.01132632,21186.0,21185.0,2.23985479]
[1673948955079,0.01132632,21186.0,21185.0,2.16910589]
[1673948955601,0.01832632,21186.0,21185.0,2.46756607]
[1673948955861,0.01832632,21186.0,21185.0,2.18510589]
[1673948956120,0.01790524,21186.0,21185.0,2.18510589]
[1673948956381,0.00132101,21189.0,21186.0,0.42091235]
[1673948956678,0.00132101,21189.0,21187.0,1.715961]
[1673948956942,0.32214754,21188.0,21187.0,1.415961]
[1673948958305,0.32214754,21188.0,21187.0,1.418961]
[1673948958563,0.32214754,21188.0,21187.0,1.415961]
[1673948959072,0.32214754,21188.0,21187.0,1.437961]
[1673948959073,0.32914754,21188.0,21187.0,1.437961]
[1673948959381,0.32836692,21188.0,21187.0,1.7380271]
[1673948959595,0.32836692,21188.0,21187.0,1.737961]
[1673948959848,0.32836692,21188.0,21187.0,1.265974]
[1673948960363,0.00735954,21188.0,21187.0,1.75659908]
[1673948960689,0.007,21188.0,21187.0,1.488574]
[1673948960873,0.007,21188.0,21187.0,2.1146861]
[1673948961147,0.007,21188.0,21187.0,2.25561665]
[1673948961378,0.00132101,21189.0,21187.0,2.0926861]
[1673948961634,0.001,21188.0,21187.0,1.97329207]
[1673948961933,0.001,21188.0,21187.0,1.98400073]
[1673948962153,0.00132101,21189.0,21187.0,2.23302644]
[1673948962415,0.00132101,21189.0,21188.0,0.623]
[1673948962683,0.00132101,21189.0,21188.0,1.094965]
[1673948962936,0.00132101,21189.0,21188.0,0.994965]
[1673948962937,0.00168055,21189.0,21188.0,0.994965]
[1673948963220,0.00168055,21189.0,21188.0,0.471965]
[1673948963471,0.32410001,21189.0,21188.0,0.471965]
[1673948964429,0.32410001,21189.0,21188.0,0.548965]
[1673948964687,0.32410001,21189.0,21188.0,0.848965]
[1673948964948,0.32410001,21189.0,21188.0,0.548965]
[1673948965210,0.43595955,21189.0,21188.0,0.548965]